bitfinex-derivatives/quotes_ETHF0:USTF0_20241129
["timestamp","ask_amount","ask_price","bid_price","bid_amount"]
[1732854285338,4.24328127,3568.4,3567.5,4.67548127]
[1732854285339,0.28024,3567.8,3567.5,4.67548127]
[1732854285538,0.4305,3568.3,3567.5,1.03548127]
[1732854285946,0.28025,3567.7,3567.5,1.03548127]
[1732854286234,0.28023,3567.9,3567.5,1.03548127]
[1732854286435,0.4305,3568.3,3567.5,1.03548127]
[1732854286831,0.28023,3568.0,3567.5,1.03548127]
[1732854287038,0.28021,3568.2,3567.5,1.31574127]
[1732854287246,1.46598127,3568.3,3567.7,3.2078]
[1732854287439,0.28023,3567.9,3567.8,0.8711]
[1732854287632,0.28023,3567.9,3567.8,1.3206]
[1732854288241,1.46598127,3568.3,3567.8,1.3206]
[1732854288444,0.28021,3568.2,3567.8,1.3206]
[1732854288740,1.46598127,3568.3,3567.8,1.3206]
[1732854288741,0.28023,3567.9,3567.8,1.3206]
[1732854289139,0.4305,3568.3,3567.8,1.3206]
[1732854289445,0.28022,3568.1,3567.8,1.3206]
[1732854289639,0.28021,3568.2,3567.8,1.3206]
[1732854290041,0.28022,3568.1,3567.8,1.3206]
[1732854290239,0.28023,3568.0,3567.8,1.3206]
[1732854290736,1.03548127,3568.2,3567.8,1.3206]
[1732854290937,1.31569127,3568.2,3567.8,1.3206]
[1732854291433,0.28022,3568.1,3567.8,1.3206]
[1732854292137,0.4305,3568.3,3567.8,1.3206]
[1732854292339,0.28021,3568.2,3567.8,1.60083]
[1732854294037,0.28022,3568.1,3567.8,1.3206]
[1732854294242,1.03548127,3568.2,3567.8,1.3206]
[1732854294243,0.28022,3568.0,3567.8,1.3206]
[1732854294440,0.28023,3567.9,3567.8,0.8724]
[1732854294748,1.03548127,3568.2,3567.8,0.8724]
[1732854294749,0.28023,3568.0,3567.8,0.8724]
[1732854294943,1.31571127,3567.9,3567.4,0.72197]
[1732854295146,0.28024,3567.8,3567.5,0.4422]
[1732854295338,0.28025,3567.7,3567.5,0.4422]
[1732854295543,0.68594,3567.8,3567.5,0.4422]
[1732854296938,0.4057,3567.8,3567.5,0.4422]
[1732854297141,0.28025,3567.6,3567.5,0.4422]
[1732854298843,3.9083,3568.4,3567.5,0.4422]
[1732854299046,0.28025,3567.7,3567.5,0.4422]
[1732854300145,1.03548127,3568.0,3567.5,0.4422]
[1732854300349,0.844,3568.3,3567.5,0.4422]
[1732854300552,0.28024,3567.8,3567.5,0.4422]
[1732854300754,1.03548127,3568.2,3567.5,0.4422]
[1732854300946,0.28025,3567.7,3567.5,0.4422]
[1732854301749,1.03548127,3568.2,3567.5,0.4422]
[1732854301954,0.28024,3567.8,3567.5,0.4422]
[1732854302254,0.28025,3567.7,3567.5,0.4422]
[1732854302444,1.03548127,3568.2,3567.5,0.4422]
[1732854302749,0.4161,3568.3,3567.5,0.4422]
[1732854303049,1.45158127,3568.3,3567.6,1.31573127]
[1732854303264,1.88868127,3568.3,3567.6,1.31573127]
[1732854303546,0.28024,3567.8,3567.6,4.39572843]
[1732854303847,0.28024,3567.8,3567.5,4.83792843]
[1732854304051,0.4092,3568.2,3567.5,4.83792843]
[1732854304251,0.28023,3567.9,3567.6,0.28025]
[1732854304549,0.28023,3567.9,3567.6,4.67597843]
[1732854305153,0.4092,3568.2,3567.6,4.39572843]
[1732854305356,0.28023,3568.0,3567.6,4.39572843]
[1732854305557,0.28021,3568.2,3567.8,0.28023]
[1732854305745,3.2078,3568.4,3568.0,1.03548127]
[1732854305950,0.425,3568.7,3568.3,1.03548127]
[1732854305951,0.28018,3568.6,3568.3,1.03548127]
[1732854306146,0.70517,3568.7,3568.4,0.4495]
[1732854306445,1.47108127,3568.8,3568.4,0.8608]
[1732854306650,0.28018,3568.6,3568.4,0.8608]
[1732854307048,1.47108127,3568.8,3568.4,0.8608]
[1732854307547,1.75124127,3568.8,3568.4,1.14099]
[1732854307953,0.28017,3568.7,3568.4,0.8608]
[1732854308349,1.03548127,3568.6,3568.4,0.8608]
[1732854308958,0.28018,3568.5,3568.4,0.8608]
[1732854309358,1.03548127,3568.6,3568.4,0.8608]
[1732854309756,1.47108127,3568.8,3568.4,0.8608]
[1732854310257,1.75124127,3568.8,3568.4,1.14099]
[1732854310450,1.47108127,3568.8,3568.4,1.14099]
[1732854310655,0.28017,3568.7,3568.4,0.8608]
[1732854311359,1.75124127,3568.8,3568.4,1.14099]
[1732854311554,0.28017,3568.7,3568.4,0.8608]
[1732854312062,0.4356,3568.8,3568.4,0.8608]
[1732854312362,1.75124127,3568.8,3568.4,0.8608]
[1732854312863,1.47108127,3568.8,3568.4,0.8608]
[1732854313463,1.47108127,3568.8,3568.4,5.53671843]
[1732854313658,1.47108127,3568.8,3568.4,5.25652843]
[1732854313860,1.75125127,3568.8,3568.4,5.25652843]
[1732854314857,1.47108127,3568.8,3568.4,5.25652843]
[1732854315056,1.75124127,3568.8,3568.4,5.53670843]
[1732854315257,1.03548127,3568.5,3568.4,0.8608]
[1732854315561,0.4356,3568.8,3568.6,0.28017]
[1732854315762,0.4356,3568.8,3568.5,0.28018]
[1732854316166,0.4356,3568.8,3568.6,0.4428]
[1732854317563,0.4356,3568.8,3568.6,0.72297]
[1732854317962,0.4356,3568.8,3568.6,0.4428]
[1732854318164,0.71576,3568.8,3568.6,0.4428]
[1732854318467,0.71577,3568.8,3568.6,0.4428]
[1732854318967,0.4356,3568.8,3568.6,0.4428]
[1732854319466,0.71576,3568.8,3568.6,0.4428]
[1732854319762,0.71576,3568.8,3568.4,4.0686]
[1732854319763,0.28017,3568.7,3568.4,4.0686]
[1732854319967,1.03548127,3568.5,3568.4,4.0686]
[1732854320161,1.03548127,3568.5,3568.4,4.34879]
[1732854320668,1.03548127,3568.5,3568.4,4.0686]
[1732854321370,2.14316127,3568.5,3568.4,3.2078]
[1732854323162,1.86298127,3568.5,3568.0,1.2513]
[1732854323367,0.28021,3568.1,3568.0,1.2513]
[1732854323866,0.4199,3568.1,3567.6,3.2078]
[1732854324060,0.70012,3568.1,3567.9,4.40166815]
[1732854324568,0.4199,3568.1,3567.9,4.68188815]
[1732854325066,0.4199,3568.1,3567.9,4.40166815]
[1732854325263,0.70012,3568.1,3567.9,4.40166815]
[1732854325462,0.28022,3568.0,3567.9,4.40166815]
[1732854325661,0.70012,3568.1,3567.8,4.40166815]
[1732854325860,0.70012,3568.1,3567.9,4.40166815]
[1732854326062,0.70012,3568.1,3567.8,4.40166815]
[1732854326566,0.4199,3568.1,3567.9,4.40166815]
[1732854329562,0.28022,3568.0,3567.9,4.40166815]
[1732854329864,0.28023,3567.9,3567.8,4.40166815]
[1732854330161,1.76351127,3567.9,3567.7,5.23416815]
[1732854330560,1.48328127,3567.9,3567.7,5.23416815]
[1732854330967,1.48328127,3567.9,3567.8,4.40166815]
[1732854335272,1.48328127,3567.9,3567.7,5.23416815]
[1732854335671,1.03548127,3567.9,3567.8,0.28024]
[1732854335975,1.03548127,3567.9,3567.8,4.68190815]
[1732854336967,1.03548127,3567.9,3567.8,6.49501188]
[1732854337167,1.03548127,3567.9,3567.8,10.89874928]
[1732854337363,1.03548127,3567.9,3567.7,5.2362374]
[1732854337575,0.4347,3567.8,3567.7,5.2362374]
[1732854338865,1.22607575,3568.7,3567.8,0.28023]
[1732854338866,1.03548127,3568.0,3567.8,0.28023]
[1732854339172,1.03548127,3568.0,3567.9,0.70453]
[1732854340668,1.03548127,3568.0,3567.9,0.4243]
[1732854341372,1.03548127,3568.0,3567.9,0.70453]
[1732854341679,1.03548127,3568.0,3567.9,0.4243]
[1732854341873,1.31570127,3568.0,3567.9,0.4243]
[1732854342072,1.03548127,3568.0,3567.9,0.4243]
[1732854342676,1.03548127,3568.0,3567.7,8.44392896]
[1732854342978,1.87918127,3568.0,3567.8,4.40362896]
[1732854343181,0.28023,3567.9,3567.8,4.40362896]
[1732854343377,0.28023,3567.9,3567.5,0.68786]
[1732854343378,1.87918127,3568.0,3567.5,4.81122896]
[1732854343576,1.03548127,3567.6,3567.5,0.4076]
[1732854346079,1.03548127,3567.6,3567.5,0.68786]
[1732854346678,1.03548127,3567.6,3567.5,5.09148896]
[1732854347986,1.03548127,3567.8,3567.5,9.82925758]
[1732854348289,1.03548127,3567.8,3567.7,0.28025]
[1732854354485,1.03548127,3567.8,3567.6,0.28025]
[1732854354685,1.03548127,3567.8,3567.7,0.28025]
[1732854358292,0.4365,3568.1,3567.7,0.70375]
[1732854358494,1.03548127,3567.9,3567.7,0.70375]
[1732854359893,1.03548127,3567.9,3567.6,7.61086573]
[1732854360098,1.03548127,3567.9,3567.4,4.68333573]
[1732854360099,0.28024,3567.8,3567.4,4.68333573]
[1732854360301,1.03548127,3567.6,3567.4,4.68333573]
[1732854360689,1.03548127,3567.6,3567.4,4.40306573]
[1732854361192,1.03548127,3567.6,3567.3,4.40306573]
[1732854361193,1.31574127,3567.6,3567.3,4.40306573]
[1732854361796,1.03548127,3567.6,3567.3,4.68333573]
[1732854362197,1.03548127,3567.6,3567.3,4.40306573]
[1732854362392,1.03548127,3567.6,3567.3,4.68334573]
[1732854362800,1.03548127,3567.6,3567.3,4.40306573]
[1732854363106,0.28027,3567.4,3567.3,4.40306573]
[1732854363396,0.28029,3567.1,3566.9,4.82436573]
[1732854363598,1.03548127,3567.0,3566.9,5.10467573]
[1732854364699,1.03548127,3567.0,3566.8,7.61086573]
[1732854364904,1.03548127,3567.0,3566.8,8.31247573]
[1732854365594,1.03548127,3567.0,3566.9,0.28031]
[1732854365903,1.03548127,3567.0,3566.8,8.31248573]
[1732854366100,1.03548127,3567.0,3566.8,8.03216573]
[1732854366302,1.03548127,3567.0,3566.8,8.31248573]
[1732854366901,1.03548127,3567.0,3566.8,8.31247573]
[1732854368397,1.03548127,3567.0,3566.8,8.03216573]
[1732854368603,1.03548127,3567.0,3566.8,8.31248573]
[1732854369199,1.03548127,3567.0,3566.7,4.40306573]
[1732854369509,1.03548127,3566.8,3566.6,4.40306573]
[1732854369807,1.03548127,3566.8,3566.5,4.80946573]
[1732854370007,0.72761,3566.9,3566.5,4.80946573]
[1732854370008,1.03548127,3566.6,3566.5,4.80946573]
[1732854370606,1.03548127,3566.6,3566.5,6.62856974]
[1732854370809,1.03548127,3566.6,3566.5,4.80944915]
[1732854372709,1.03548127,3566.6,3566.5,0.4064]
[1732854374004,1.03548127,3566.6,3566.4,23.5709801]
[1732854374404,1.03548127,3566.6,3566.4,18.88758095]
[1732854374906,1.03548127,3566.6,3566.4,23.5709801]
[1732854375404,1.03548127,3566.6,3566.4,18.88758095]
[1732854375802,1.03548127,3566.6,3566.4,23.2906301]
[1732854376311,1.03548127,3566.6,3566.4,18.88758095]
[1732854376796,0.4226,3566.5,3566.4,15.67978095]
[1732854379107,3.2078,3568.2,3566.4,22.72706222]
[1732854379305,1.03548127,3567.5,3567.2,0.28028]
[1732854379502,1.03548127,3567.5,3567.3,1.2384]
[1732854380500,3.6349,3568.1,3567.3,1.2384]
[1732854380807,4.24328127,3568.1,3567.5,3.2078]
[1732854381006,4.24328127,3568.1,3567.9,0.28023]
[1732854381200,4.24328127,3568.1,3568.0,1.2998]
[1732854382208,1.03548127,3568.1,3568.0,1.2998]
[1732854382704,0.28018,3568.5,3568.0,1.58002]
[1732854382906,0.8727,3568.7,3568.0,1.2998]
[1732854383108,0.8727,3568.7,3568.3,0.28019]
[1732854383309,1.03548127,3568.5,3568.3,0.28019]
[1732854384111,1.03548127,3568.5,3568.2,0.2802]
[1732854384411,1.03548127,3568.7,3568.5,0.28018]
[1732854384612,1.03548127,3568.7,3568.3,3.2078]
[1732854384813,1.12974,3569.1,3568.5,0.28018]
[1732854385116,1.12974,3569.1,3568.3,3.2078]
[1732854385117,0.28014,3569.0,3568.3,3.2078]
[1732854385318,1.03548127,3568.5,3568.3,3.2078]
[1732854385614,1.03548127,3568.5,3568.4,0.28019]
[1732854386808,1.03548127,3568.7,3568.3,3.2078]
[1732854387217,1.03548127,3568.7,3568.6,0.28017]
[1732854387606,1.03548127,3568.7,3568.5,0.28018]
[1732854388619,1.03548127,3568.7,3568.3,3.2078]
[1732854388916,0.70764,3569.1,3568.5,0.28018]
[1732854389112,0.4275,3569.1,3568.3,3.2078]
[1732854389318,0.28015,3569.0,3568.4,0.28019]
[1732854389529,0.4275,3569.1,3568.4,0.28019]
[1732854389711,0.4275,3569.1,3568.6,0.28017]
[1732854389914,0.4275,3569.1,3568.7,0.4133]
[1732854390309,1.03548127,3568.8,3568.7,0.4133]
[1732854393013,1.03548127,3568.8,3568.6,0.28017]
[1732854393917,1.03548127,3568.8,3568.4,0.4204]
[1732854394217,1.03548127,3568.5,3568.4,0.4204]
[1732854398927,1.03548127,3568.5,3568.0,4.0763]
[1732854399118,1.31567127,3568.5,3568.1,0.4052]
[1732854399722,1.03548127,3568.5,3568.1,0.4052]
[1732854400414,1.03548127,3568.5,3568.1,0.68541]
[1732854400620,1.03548127,3568.5,3568.1,0.4052]
[1732854400825,1.03548127,3568.5,3568.1,0.68541]
[1732854401024,1.03548127,3568.5,3568.1,0.4052]
[1732854401924,0.28019,3568.4,3568.1,0.4052]
[1732854402124,0.70539,3568.4,3568.1,0.4052]
[1732854402426,0.4252,3568.4,3568.1,0.4052]
[1732854402623,1.03548127,3568.5,3568.1,0.4052]
[1732854402824,1.03548127,3568.5,3568.1,0.68541]
[1732854403630,1.03548127,3568.5,3568.1,0.4052]
[1732854403926,1.03548127,3568.5,3568.1,0.68541]
[1732854404223,0.4242,3568.7,3568.1,0.4052]
[1732854404424,1.45968127,3568.7,3568.3,0.28019]
[1732854404624,1.74084127,3568.9,3568.4,0.28019]
[1732854404824,0.28016,3568.9,3568.4,0.28019]
[1732854405025,1.03548127,3568.9,3568.1,1.44068127]
[1732854405329,0.28016,3568.8,3568.3,0.28019]
[1732854405527,1.03548127,3568.7,3568.1,1.44068127]
[1732854405828,1.31563127,3568.9,3568.1,5.14068127]
[1732854406030,3.2078,3569.0,3568.3,1.03548127]
[1732854406332,3.2078,3569.0,3568.6,0.28017]
[1732854406529,0.28016,3568.9,3568.7,0.8819]
[1732854407236,0.28016,3568.8,3568.7,0.8819]
[1732854407528,1.31564127,3568.8,3568.7,0.8819]
[1732854407725,1.03548127,3568.8,3568.7,0.8819]
[1732854408429,1.03548127,3568.8,3568.7,1.16207]
[1732854408631,4.24328127,3569.0,3568.7,1.16207]
[1732854408833,4.24328127,3569.0,3568.7,0.8819]
[1732854409225,4.24328127,3569.0,3568.7,1.16207]
[1732854409423,4.24328127,3569.0,3568.7,0.8819]
[1732854409626,1.03548127,3568.8,3568.7,0.8819]
[1732854413025,1.31564127,3568.8,3568.6,0.4311]
[1732854413332,1.31564127,3568.8,3568.6,1.279]
[1732854415525,3.2078,3568.9,3568.6,1.279]
[1732854415731,4.24328127,3568.9,3568.6,1.55917]
[1732854416027,4.52343127,3568.9,3568.6,1.279]
[1732854416829,1.31563127,3568.9,3568.6,1.279]
[1732854418834,1.03548127,3568.9,3568.6,1.55917]
[1732854419033,0.28014,3569.1,3568.6,1.55917]
[1732854419230,1.31563127,3569.0,3568.6,1.279]
[1732854419630,1.03548127,3569.0,3568.6,1.55917]
[1732854421337,1.31562127,3569.0,3568.6,1.55917]
[1732854421527,0.4477,3569.2,3568.6,1.279]
[1732854421729,1.03548127,3569.1,3568.7,0.28017]
[1732854421929,1.03548127,3569.1,3568.6,1.279]
[1732854422130,0.28014,3569.0,3568.6,1.55917]
[1732854422531,0.28014,3569.0,3568.6,1.279]
[1732854422743,1.03548127,3569.1,3568.6,1.279]
[1732854422935,0.28015,3569.0,3568.6,1.279]
[1732854423235,0.4477,3569.2,3568.6,1.279]
[1732854423435,1.76331127,3569.2,3568.7,0.28016]
[1732854423645,0.28014,3569.1,3568.7,0.28016]
[1732854423939,0.28014,3569.1,3568.6,1.279]
[1732854424137,0.28014,3569.1,3568.6,1.55917]
[1732854424339,1.03548127,3568.9,3568.6,1.55917]
[1732854424835,1.31564127,3568.9,3568.6,1.279]
[1732854425035,1.03548127,3568.9,3568.6,1.55917]
[1732854425334,1.31563127,3568.9,3568.6,5.68204915]
[1732854425644,1.03548127,3568.9,3568.6,5.68204915]
[1732854425937,1.03548127,3568.9,3568.6,5.96221915]
[1732854426336,1.03548127,3568.9,3568.7,4.40304915]
[1732854427134,0.4477,3569.2,3568.7,4.40304915]
[1732854427436,1.48318127,3569.2,3568.8,0.28016]
[1732854427736,0.28014,3569.1,3568.7,4.68320915]
[1732854428136,0.28014,3569.1,3568.7,4.40304915]
[1732854428331,0.28014,3569.1,3568.8,4.40304915]
[1732854428535,11.90988774,3570.2,3569.0,5.27876254]
[1732854428833,4.24328127,3571.1,3570.1,7.6379835]
[1732854429036,3.2078,3571.1,3570.6,1.31550127]
[1732854429236,3.2078,3571.1,3570.7,4.40803582]
[1732854429441,3.2078,3571.1,3570.5,0.28002]
[1732854429643,0.27999,3571.0,3570.4,8.65131709]
[1732854430044,0.27999,3571.0,3570.4,8.93134709]
[1732854430341,1.31548127,3570.9,3570.4,7.61583582]
[1732854430545,0.28001,3570.8,3570.2,1.88578127]
[1732854430736,0.28001,3570.8,3570.2,1.13035]
[1732854430938,2.19768127,3570.9,3570.2,2.16583127]
[1732854431234,2.19768127,3570.9,3570.3,0.28004]
[1732854432236,1.91768127,3570.9,3570.3,0.28004]
[1732854432439,0.28,3570.8,3570.2,1.88578127]
[1732854432743,2.19768127,3570.9,3570.2,2.16583127]
[1732854433045,0.8822,3570.9,3570.3,0.28004]
[1732854433437,0.8822,3570.9,3570.2,0.8503]
[1732854433641,0.28001,3570.8,3570.2,0.8503]
[1732854433845,0.28001,3570.8,3570.2,1.13035]
[1732854434841,0.8822,3570.9,3570.2,0.8503]
[1732854435038,0.28,3570.8,3570.3,0.28004]
[1732854435232,1.1622,3570.9,3570.3,0.28003]
[1732854435440,1.1622,3570.9,3570.2,0.8503]
[1732854435441,0.28003,3570.5,3570.2,0.8503]
[1732854435741,4.24328127,3570.7,3570.0,3.2078]
[1732854435936,0.28009,3569.7,3569.5,4.0705]
[1732854436137,0.28008,3569.8,3569.5,3.2078]
[1732854436538,1.2359,3570.0,3569.5,3.2078]
[1732854436738,0.28008,3569.9,3569.5,3.2078]
[1732854436941,1.2359,3570.0,3569.5,3.2078]
[1732854437145,0.28007,3569.9,3569.5,3.2078]
[1732854438045,0.28007,3569.9,3569.4,0.28011]
[1732854438242,1.2359,3570.0,3569.2,1.03548127]
[1732854438548,4.24328127,3569.9,3569.2,1.03548127]
[1732854438744,0.28012,3569.4,3568.9,1.31563127]
[1732854438946,0.4403,3569.3,3568.9,1.31563127]
[1732854439145,0.4403,3569.3,3568.9,1.03548127]
[1732854439349,0.4403,3569.3,3569.1,1.31561127]
[1732854440342,0.4403,3569.3,3569.1,1.03548127]
[1732854442149,0.4403,3569.3,3568.8,1.47018127]
[1732854442345,1.47578127,3569.3,3568.7,3.22036]
[1732854442545,0.28016,3568.9,3568.7,0.01256]
[1732854442847,0.4114,3569.2,3568.7,0.01256]
[1732854443148,0.28014,3569.1,3568.7,0.01256]
[1732854443344,0.28014,3569.1,3568.8,1.03548127]
[1732854444152,0.28014,3569.1,3568.7,0.01256]
[1732854445753,0.28015,3569.0,3568.7,0.01256]
[1732854445950,0.4114,3569.2,3568.7,0.01256]
[1732854446257,0.28014,3569.1,3568.7,0.01256]
[1732854447052,0.4114,3569.2,3568.7,0.01256]
[1732854447249,0.28015,3569.0,3568.7,0.01256]
[1732854447553,0.28014,3569.1,3568.7,0.01256]
[1732854448849,0.69153,3569.2,3568.7,0.71522]
[1732854449554,0.69153,3569.2,3568.7,0.70266]
[1732854449750,0.28014,3569.1,3568.7,0.4225]
[1732854450753,0.28015,3569.0,3568.7,0.4225]
[1732854450948,0.4114,3569.2,3568.7,0.4225]
[1732854451158,0.28015,3569.0,3568.7,0.4225]
[1732854451851,0.28014,3569.1,3568.7,0.4225]
[1732854452255,0.28015,3569.0,3568.7,0.4225]
[1732854452649,0.4114,3569.2,3568.7,0.4225]
[1732854452958,0.28015,3569.0,3568.7,0.4225]
[1732854453255,0.28016,3568.9,3568.7,0.4225]
[1732854453452,0.4114,3569.2,3568.7,0.4225]
[1732854453655,0.28015,3569.0,3568.7,0.4225]
[1732854454454,0.4114,3569.2,3568.7,0.4225]
[1732854454658,0.28015,3568.9,3568.7,0.4225]
[1732854455165,0.28015,3569.0,3568.7,0.4225]
[1732854455655,0.4114,3569.2,3568.9,2.14386227]
[1732854455855,0.28014,3569.1,3568.9,2.14386227]
[1732854456354,0.28012,3569.4,3569.0,0.28014]
[1732854456549,0.8354,3569.7,3569.3,2.14386227]
[1732854456752,0.2801,3569.6,3569.4,0.8477]
[1732854457069,0.2801,3569.5,3569.4,0.8477]
[1732854457454,0.2801,3569.6,3569.4,0.8477]
[1732854458059,0.2801,3569.5,3569.4,0.8477]
[1732854458253,0.8354,3569.7,3568.8,2.14386227]
[1732854458560,0.28014,3569.1,3568.8,2.14386227]
[1732854458860,3.2078,3569.6,3568.8,2.14386227]
[1732854458861,0.28014,3569.0,3568.8,2.14386227]
[1732854459461,0.28014,3569.1,3568.8,2.14386227]
[1732854459667,0.72754,3569.0,3568.8,2.14386227]
[1732854459962,0.4474,3569.0,3568.8,2.42402227]
[1732854460654,0.4474,3569.0,3568.8,2.14386227]
[1732854460850,0.72754,3569.0,3568.8,2.14386227]
[1732854461558,3.2078,3569.6,3568.8,2.42402227]
[1732854461861,0.28014,3569.1,3568.8,2.14386227]
[1732854462261,0.28013,3569.2,3568.8,2.42402227]
[1732854463154,0.4476,3569.5,3568.8,2.42401227]
[1732854463360,0.28013,3569.3,3568.8,2.42402227]
[1732854463559,3.2078,3569.6,3569.2,2.14386227]
[1732854463860,0.28011,3569.5,3569.3,0.8202]
[1732854464357,0.28011,3569.4,3569.3,0.8202]
[1732854464565,0.28014,3569.1,3568.8,2.14386227]
[1732854464766,0.28014,3569.1,3568.8,2.55246227]
[1732854465265,0.28014,3569.0,3568.8,2.55246227]
[1732854465565,3.2078,3569.6,3568.8,2.55246227]
[1732854465566,0.28014,3569.1,3568.8,2.55246227]
[1732854465865,0.28015,3568.9,3568.8,2.55246227]
[1732854466060,0.72995,3569.0,3568.8,2.55246227]
[1732854466265,0.28015,3568.9,3568.8,2.55246227]
[1732854466460,0.4498,3569.0,3568.8,2.55246227]
[1732854466855,0.72994,3569.0,3568.8,2.55246227]
[1732854467565,0.72994,3569.0,3568.8,0.4086]
[1732854467763,0.72994,3569.0,3568.8,2.55246227]
[1732854468168,0.28014,3569.0,3568.9,1.03646081]
[1732854468665,0.4098,3569.5,3568.9,1.03646081]
[1732854468970,0.28012,3569.3,3569.2,1.03646081]
[1732854469766,0.28011,3569.4,3569.2,1.03646081]
[1732854470270,0.69931,3569.5,3569.3,0.8697]
[1732854470668,0.28011,3569.4,3569.3,0.8697]
[1732854472067,0.4192,3569.5,3569.3,0.8697]
[1732854472258,0.4098,3569.8,3569.3,1.14982]
[1732854472259,0.2801,3569.6,3569.3,1.14982]
[1732854472462,0.4098,3569.8,3569.3,0.8697]
[1732854472657,0.2801,3569.6,3569.3,0.8697]
[1732854472859,0.2801,3569.5,3569.3,0.8697]
[1732854473469,0.4098,3569.8,3569.3,0.8697]
[1732854473670,0.28011,3569.5,3569.3,0.8697]
[1732854473864,0.28011,3569.4,3569.3,0.8697]
[1732854474065,0.72331,3569.4,3569.3,0.4427]
[1732854474966,0.4432,3569.4,3569.3,0.4427]
[1732854475467,0.72331,3569.4,3569.3,0.4427]
[1732854476971,0.28014,3569.1,3569.0,0.4254]
[1732854477468,0.28013,3569.2,3568.8,0.8227]
[1732854477673,0.28015,3569.0,3568.8,0.8227]
[1732854478567,0.28014,3569.1,3568.8,0.8227]
[1732854478767,0.28015,3569.0,3568.8,0.8227]
[1732854478966,0.41,3569.2,3568.8,0.8227]
[1732854479168,0.4432,3569.4,3568.9,2.14330662]
[1732854479369,0.28012,3569.3,3569.1,0.28013]
[1732854479593,0.28012,3569.3,3569.2,0.4227]
[1732854479874,3.651,3569.4,3569.2,0.4227]
[1732854480067,0.65004366,3570.0,3569.3,2.14330662]
[1732854480068,0.28008,3569.8,3569.3,2.14330662]
[1732854480271,0.70737,3570.0,3569.6,0.28009]
[1732854480667,0.28007,3569.9,3569.6,0.28009]
[1732854481866,0.28007,3569.9,3569.5,4.68813582]
[1732854482073,3.2078,3570.2,3569.9,0.28007]
[1732854482272,0.28006,3570.1,3570.0,1.2609]
[1732854482472,3.2078,3570.2,3570.0,1.2609]
[1732854482671,0.69234,3570.3,3570.0,1.2609]
[1732854482985,0.28007,3570.0,3569.8,2.14330662]
[1732854483175,0.28007,3570.0,3569.7,0.4285]
[1732854483372,0.4384,3570.2,3569.7,0.4285]
[1732854483573,0.69235,3570.3,3569.9,0.28007]
[1732854483966,0.4123,3570.3,3569.8,2.14330662]
[1732854484273,0.28005,3570.2,3569.8,2.42338662]
[1732854484475,0.28005,3570.2,3569.8,2.14330662]
[1732854485677,0.28005,3570.2,3569.8,2.42338662]
[1732854486083,0.4123,3570.3,3569.9,0.28007]
[1732854486275,0.69235,3570.3,3569.8,2.42338662]
[1732854486478,4.0807,3570.6,3569.8,2.14330662]
[1732854486676,0.28003,3570.5,3569.8,6.55134244]
[1732854486877,0.28004,3570.3,3569.9,0.28007]
[1732854487185,0.28007,3570.0,3569.6,5.24043582]
[1732854487380,0.28006,3570.1,3569.7,0.4497]
[1732854488682,0.4201,3570.2,3569.7,0.4497]
[1732854488884,0.4201,3570.2,3569.8,0.28007]
[1732854489079,3.6462,3570.6,3570.0,2.14330662]
[1732854489279,3.2078,3570.6,3570.2,0.28004]
[1732854489480,3.48782,3570.6,3570.3,0.834]
[1732854489986,0.28003,3570.5,3570.3,0.834]
[1732854490186,3.2078,3570.6,3570.3,0.834]
[1732854490381,0.28003,3570.5,3570.3,0.834]
[1732854490789,0.28004,3570.4,3570.1,0.4465]
[1732854491392,3.2078,3570.6,3570.1,0.4465]
[1732854491586,3.48782,3570.6,3570.2,0.28004]
[1732854491883,3.2078,3570.6,3570.3,0.28004]
[1732854492297,3.48782,3570.6,3570.2,0.28005]
[1732854493290,3.48782,3570.6,3570.1,0.4465]
[1732854493291,0.28003,3570.5,3570.1,0.4465]
[1732854493491,0.28003,3570.5,3570.1,0.72655]
[1732854494093,3.48782,3570.6,3570.2,0.28005]
[1732854494498,3.2078,3571.0,3570.5,0.28003]
[1732854494692,3.2078,3571.0,3570.6,1.2862]
[1732854494894,0.28001,3570.7,3570.6,1.2862]
[1732854495097,3.2078,3571.0,3570.6,1.2862]
[1732854495293,0.28001,3570.8,3570.6,1.2862]
[1732854495897,0.28001,3570.7,3570.6,1.2862]
[1732854496395,3.2078,3571.0,3570.6,1.2862]
[1732854496596,0.28,3570.9,3570.6,1.2862]
[1732854497295,0.28,3570.9,3570.6,1.56622]
[1732854497497,3.48779,3571.0,3570.7,0.28001]
[1732854498298,3.48779,3571.0,3570.6,1.56621]
[1732854500295,3.2078,3571.0,3570.6,1.2862]
[1732854500598,0.27995,3571.5,3571.0,0.27998]
[1732854500900,0.27994,3571.6,3571.1,0.71888]
[1732854501095,0.27995,3571.6,3571.2,0.8188]
[1732854501302,0.4097,3571.8,3571.2,0.8188]
[1732854501705,0.27995,3571.5,3571.2,0.8188]
[1732854501901,0.4097,3571.8,3571.2,0.8188]
[1732854502098,0.27994,3571.7,3571.3,0.27996]
[1732854502300,0.4097,3571.8,3571.4,0.27995]
[1732854502301,0.27993,3571.8,3571.4,0.27995]
[1732854502607,0.27993,3571.8,3571.4,0.27996]
[1732854502901,0.8578,3571.9,3571.4,0.27996]
[1732854503106,0.27993,3571.8,3571.3,2.14330662]
[1732854503301,0.27994,3571.7,3571.3,0.27996]
[1732854503700,0.27992,3571.8,3571.4,0.27995]
[1732854504008,0.4489,3571.9,3571.7,2.14330662]
[1732854504208,3.2078,3572.3,3571.8,1.3308]
[1732854504406,0.27989,3572.3,3571.9,0.27991]
[1732854504704,0.2799,3572.2,3571.8,1.61072]
[1732854504901,0.2799,3572.1,3571.8,1.3308]
[1732854505102,0.27989,3572.2,3571.8,1.3308]
[1732854505407,0.27989,3572.2,3571.8,1.61072]
[1732854507004,0.4345,3572.4,3571.8,1.61072]
[1732854507005,0.2799,3572.1,3571.8,1.3308]
[1732854507407,0.4345,3572.4,3571.8,1.3308]
[1732854508211,0.27992,3571.9,3571.8,1.3308]
[1732854508502,3.2078,3572.3,3571.8,1.3308]